Cogmind - Beta 13 @@@ ROGUE MODE // 2024.06.29 @ 12:13:50 Player: N00Bk1llr Result: Destroyed by B-36 Bruiser with Hammer Performance ------------- Evolutions (1) 500 Regions Visited (6) 1200 Robots Destroyed (67) 335 Value Destroyed (1272) 1272 Prototype IDs (3) 60 Alien Tech Used (0) 0 Bonus (17) 17 TOTAL SCORE: 3384 Bonus ------- High Alert Combat Kills 17 Cogmind --------- Core Integrity 0/400 Matter 225/300 Energy 100/100 System Corruption 0% Temperature Cool (0) Movement Treading (320) Ox2 Location -8/Mines Parts ------- > --- POWER (1) -------- (None) > --- PROPULSION (2) --- Light Treads > --- UTILITY (3) ------ High-capacity Storage Unit > --- WEAPON (3) ------- Heavy Assault Rifle > --- INVENTORY (20) --- Large Matter Pod (0) Seismic Detector Advanced Targeting Computer Advanced Targeting Computer Experimental Targeting Computer Advanced Weapon Cycler Improved Utility Shielding Improved Utility Shielding Hardened Medium Armor Plating Hacking Suite Hacking Suite Authchip [R/Combat] Authchip [Propulsion] Authchip [Device] Mini Grenade Launcher Peak State ------------ > --- POWER ------------ Light Ion Engine > --- PROPULSION ------- Light Treads Light Treads > --- UTILITY ---------- High-capacity Storage Unit Hardened Medium Armor Plating Hardened Medium Armor Plating > --- WEAPON ----------- Assault Rifle Light Assault Rifle Heavy Assault Rifle > --- INVENTORY -------- Light Treads Light Treads Light Treads Large Storage Unit Seismic Detector Advanced Targeting Computer Advanced Targeting Computer Improved Utility Shielding Improved Utility Shielding Hardened Medium Armor Plating Hardened Medium Armor Plating Hacking Suite Authchip [R/Combat] Authchip [Propulsion] Authchip [Propulsion] Authchip [Device] Assault Rifle Heavy Assault Rifle Improved Assault Rifle Mini Grenade Launcher [Rating: 19] Favorites ----------- Power Light Ion Engine Engine Light Ion Engine Propulsion Light Treads Treads Light Treads Leg Aluminum Leg Utility Hardened Medium Armor Plating Storage High-capacity Storage Unit Protection Hardened Medium Armor Plating Weapon Assault Rifle Energy Gun Beam Rifle Ballistic Gun Assault Rifle Ballistic Cannon Light Cannon Launcher Rocket Launcher Build | -11 -10 -10 -9 -9 -9 -8 ------- Run | Yrd Mat Min Mat Min Exi Min Slots Evolved 2 | . . . 2 . . . Power . | . . . . . . . Propulsion . | . . . . . . . Utility 1 | . . . 1 . . . Weapon 1 | . . . 1 . . . Parts Attached 46 | 3 6 . 25 . 12 . Power 2 | . . . 2 . . . Engine 2 | . . . 2 . . . Core . | . . . . . . . Reactor . | . . . . . . . Propulsion 12 | 2 2 . 5 . 3 . Treads 12 | 2 2 . 5 . 3 . Leg . | . . . . . . . Wheel . | . . . . . . . Hover . | . . . . . . . Flight . | . . . . . . . Utility 14 | . 3 . 8 . 3 . Device . | . . . . . . . Storage 3 | . 2 . 1 . . . Processor . | . . . . . . . Hackware . | . . . . . . . Protection 11 | . 1 . 7 . 3 . Artifact . | . . . . . . . Weapon 18 | 1 1 . 10 . 6 . Energy Gun 3 | . . . 3 . . . Energy Cannon . | . . . . . . . Ballistic Gun 11 | 1 . . 7 . 3 . Ballistic Cannon 1 | . 1 . . . . . Launcher 3 | . . . . . 3 . Special Weapon . | . . . . . . . Impact Weapon . | . . . . . . . Slashing Weapon . | . . . . . . . Piercing Weapon . | . . . . . . . Special Melee Weapon . | . . . . . . . Unidentified Prototypes . | . . . . . . . Parts Lost 13 | . . . 1 . 11 1 Power 1 | . . . . . 1 . Propulsion 4 | . . . 1 . 3 . Utility 3 | . . . . . 3 . Weapon 5 | . . . . . 4 1 Highest Loss Streak 6 | . . . 1 . 6 1 To Critical Strikes 3 | . . . . . 3 . Average Slot Usage (%) 91 | . 99 100 98 100 75 33 Engine 9 | . 14 14 11 11 4 . Treads 23 | . 28 28 21 22 21 11 Storage 11 | . 14 14 11 11 11 11 Protection 16 | . 13 14 20 22 11 . Energy Gun 2 | . . . 7 . . . Ballistic Gun 22 | . 18 14 23 33 23 11 Ballistic Cannon 3 | . 9 14 2 . . . Launcher 1 | . . . . . 3 . Naked Turns . | . . . . . . . Heaviest Build 65 | 14 31 31 65 65 65 47 Greatest Support 40 | 40 40 40 40 40 40 20 Greatest Overweight (x) 3 | . . . 2 1 3 2 Average Overweight (x) . | . . . . 1 1 2 Largest Inventory Capacity 20 | 8 15 15 20 20 20 20 Average Capacity 17 | 8 11 15 19 20 20 20 Most Carried 20 | 6 13 13 20 20 20 15 Average Carried 16 | 3 9 13 19 20 17 15 Final Capacity 20 | 8 15 15 20 20 20 20 Final Carried 20 | 4 13 13 20 20 15 15 Class Distribution -------------------- 48% | Scavenger-Tank 41% | Mutant 10% | Tank Dominant Class ---------------- Mutant | -10/Materials Mutant | -10/Mines Scavenger-Tank | -9/Materials Scavenger-Tank | -9/Mines Mutant | -9/Exiles Mutant | -8/Mines Resources | -11 -10 -10 -9 -9 -9 -8 ----------- Run | Yrd Mat Min Mat Min Exi Min Matter Collected 2163 | 286 302 83 1072 . 420 . Remotely . | . . . . . . . Salvage Created 2388 | 149 501 68 1497 . 135 38 Parts 149 | 15 41 2 83 . 3 5 Haulers Intercepted 6 | . 2 . 4 . . . Recyclers Shooed 5 | 1 . . 4 . . . Parts Field Recycled . | . . . . . . . Retrieved Matter . | . . . . . . . Parts Self-Destructed . | . . . . . . . Prevented . | . . . . . . . Kills | -11 -10 -10 -9 -9 -9 -8 ------- Run | Yrd Mat Min Mat Min Exi Min Combat Hostiles Destroyed 46 | . 6 3 29 . 7 1 Guns 32 | . 4 1 26 . 1 . Cannons 7 | . 2 2 3 . . . AOE 7 | . . . . . 6 1 Classes Destroyed 12 | 2 5 1 4 . . . Worker 2 | . . . 2 . . . Builder 2 | . 1 . 1 . . . Tunneler 4 | 4 . . . . . . Hauler 6 | . 2 . 4 . . . Recycler 8 | 1 2 . 5 . . . Operator 4 | . 2 . 2 . . . Watcher 2 | . 2 . . . . . Swarmer 14 | . . . 14 . . . Grunt 18 | . 6 2 9 . . 1 Brawler 1 | . . . 1 . . . Sentry 5 | . . . 5 . . . Assembled 7 | . . 1 . . 6 . Best Kill Streak 6 | 3 3 2 5 . 6 1 Combat Bots Only 6 | . 2 2 5 . 6 1 Max Kills in Single Turn 3 | 1 1 1 2 . 3 1 Gunslinging 1 | . . . 1 . . . Exploded 3 | . . . . . 3 1 Melee . | . . . . . . . Uniques/NPCs Destroyed 1 | . . . . . 1 . 8R-AWN (-9/Exiles) Combat | -11 -10 -10 -9 -9 -9 -8 -------- Run | Yrd Mat Min Mat Min Exi Min Hostile Shots Fired 284 | . 21 15 125 . 118 5 Missed 59 | . 5 5 33 . 15 1 Damage Taken 3691 | . 193 148 939 . 2265 146 Core 457 | . 11 15 81 . 284 66 Absorbed by Shields . | . . . . . . . Redirected to Shielding 42 | . 12 9 21 . . . Regen/Repaired (Parts) 42 | . . . 42 . . . Core Remaining (%) 94 | 100 . 89 . . . . Volleys Fired 225 | 11 55 14 83 . 59 3 Largest 3 | 2 2 2 3 . 3 2 Hottest 119 | 40 55 55 119 . 63 56 Shots Fired 544 | 22 110 28 244 . 136 4 Gun 453 | 22 79 14 208 . 127 3 Cannon 81 | . 31 14 36 . . . Launcher 10 | . . . . . 9 1 Special . | . . . . . . . Kinetic 478 | 22 110 28 188 . 127 3 Thermal 56 | . . . 56 . . . Explosive 10 | . . . . . 9 1 Electromagnetic . | . . . . . . . Robot Hit Streak 18 | 4 10 8 15 . 18 2 Robot Miss Streak 8 | 2 8 1 4 . 3 1 Penetration Max . | . . . . . . . Secondary Targets 5 | . 1 . 4 . . . Max Gunslinging Chain 1 | . 1 . 1 . . . Shots Hit Robots 322 | 12 55 18 143 . 91 3 Core Hits 130 | 6 26 6 59 . 30 3 Critical Kills 2 | . 1 . 1 . . . Critical Parts Destroyed . | . . . . . . . Critical Strikes 5 | . 2 . 2 . 1 . Burn 1 | . . . 1 . . . Destroy 3 | . 1 . 1 . 1 . Blast 1 | . 1 . . . . . Melee Attacks . | . . . . . . . Impact . | . . . . . . . Slashing . | . . . . . . . Piercing . | . . . . . . . Sneak Attacks . | . . . . . . . Combat Hostiles . | . . . . . . . Follow-up Attacks . | . . . . . . . Damage Inflicted 5215 | 147 797 281 2102 2 1605 281 Guns 3686 | 147 552 99 1664 . 1177 47 Cannons 808 | . 245 182 381 . . . Explosions 662 | . . . . . 428 234 Melee . | . . . . . . . Ramming 59 | . . . 57 2 . . Kinetic 3928 | 147 797 281 1479 . 1177 47 Thermal 704 | . . . 566 . . 138 Explosive 524 | . . . . . 428 96 Electromagnetic . | . . . . . . . Impact . | . . . . . . . Slashing . | . . . . . . . Piercing . | . . . . . . . Highest Corruption . | . . . . . . . Average Corruption . | . . . . . . . Corruption Purged . | . . . . . . . Corruption Blocked . | . . . . . . . Overload Shots . | . . . . . . . Overflow Damage 32 | . 16 . . . . 16 Projectiles 16 | . 16 . . . . . Explosions 16 | . . . . . . 16 Melee . | . . . . . . . Knockbacks 15 | . 3 7 5 . . . Impact . | . . . . . . . Kinetic 11 | . 3 4 4 . . . Secondary 4 | . . 3 1 . . . Self-Inflicted Damage 105 | . . . . . 40 65 Shots 3 | . . . . . 1 2 Rammed 6 | . . . 5 1 . . Targets Rammed 7 | . . . 6 1 . . Kicked . | . . . . . . . Crushed 1 | . . . 1 . . . Highest Temperature 528 | . 10 46 528 . 323 11 Average Temperature 111 | . 4 22 103 . 161 6 Received Heat Transfer 489 | . 114 93 255 . . 27 Effects 14 | . . . 12 . 2 . Shutdowns 2 | . . . 2 . . . Energy Bleed 2 | . . . 1 . 1 . Interference 2 | . . . 2 . . . Matter Decay 1 | . . . 1 . . . Short Circuit 3 | . . . 2 . 1 . Damage (minor) 1 | . . . 1 . . . Damage (major) 3 | . . . 3 . . . Siege Activations . | . . . . . . . Robots Corrupted . | . . . . . . . Combat Hostiles . | . . . . . . . Parts Fried . | . . . . . . . Impact Corruptions . | . . . . . . . Robots Melted . | . . . . . . . Combat Hostiles . | . . . . . . . Parts Melted 3 | . . . 3 . . . Heat Transferred 1584 | . . . 1434 . . 150 Parts Sabotaged . | . . . . . . . Parts Stolen . | . . . . . . . Parts Stripped . | . . . . . . . Power Chain Reactions . | . . . . . . . Alert | -11 -10 -10 -9 -9 -9 -8 ------- Run | Yrd Mat Min Mat Min Exi Min Peak Influence 463 | 25 223 50 463 149 . 43 Initial 139 | . 16 19 19 139 . . Average 173 | 12 69 14 299 91 . 25 Maximum Alert Level 2 | . 1 . 2 . . . Low Security (%) 58 | 100 91 100 17 100 . 100 Level 1 29 | . 8 . 57 . . . Level 2 12 | . . . 25 . . . Level 3 . | . . . . . . . Level 4 . | . . . . . . . Level 5 . | . . . . . . . High Security . | . . . . . . . Max Security . | . . . . . . . Squads Dispatched 6 | . 4 . 2 . . . Investigation 2 | . 1 . 1 . . . Extermination . | . . . . . . . Reinforcement 4 | . 3 . 1 . . . Assault . | . . . . . . . Garrison . | . . . . . . . Intercept . | . . . . . . . Searches Triggered . | . . . . . . . Construction Impeded . | . . . . . . . Haulers Reinforced . | . . . . . . . Active Scanning Responses . | . . . . . . . Cargo Convoy Interrupts . | . . . . . . . Stealth | -11 -10 -10 -9 -9 -9 -8 --------- Run | Yrd Mat Min Mat Min Exi Min Distress Signals 5 | . 3 . 2 . . . Communications Jammed . | . . . . . . . Distress Signals . | . . . . . . . Times Spotted 77 | . 18 3 44 . 9 3 Peak Tracking Total 9 | . 3 2 7 . 9 3 Tactical Retreats 7 | . . . 1 . 6 . Traps | -11 -10 -10 -9 -9 -9 -8 ------- Run | Yrd Mat Min Mat Min Exi Min Traps Triggered 2 | . . . 2 . . . Indirectly . | . . . . . . . Trap Hack Attempts . | . . . . . . . Triggered . | . . . . . . . Disarmed . | . . . . . . . Reprogrammed . | . . . . . . . Reused . | . . . . . . . Traps Extracted . | . . . . . . . Installed . | . . . . . . . Triggered 1 | . . . . 1 . . Machines | -11 -10 -10 -9 -9 -9 -8 ---------- Run | Yrd Mat Min Mat Min Exi Min Machines Disabled 6 | . . . . . 5 1 Max in Single Turn 2 | . . . . . 2 1 Machines Repaired . | . . . . . . . Machines Dismantled . | . . . . . . . Machines Sabotaged . | . . . . . . . Overloaded Fab Kills . | . . . . . . . Hacking | -11 -10 -10 -9 -9 -9 -8 --------- Run | Yrd Mat Min Mat Min Exi Min Machines Accessed 14 | . 5 . 9 . . . Terminals 13 | . 5 . 8 . . . Fabricators . | . . . . . . . Repair Stations 1 | . . . 1 . . . Recycling Units . | . . . . . . . Scanalyzers . | . . . . . . . Garrison Access . | . . . . . . . Total Hacks 41 | . 20 . 21 . . . Successful 24 | . 13 . 11 . . . Failed 17 | . 7 . 10 . . . Catastrophic 1 | . . . 1 . . . Database Lockouts . | . . . . . . . Manual 18 | . 14 . 4 . . . Terminals 39 | . 20 . 19 . . . Fabricators . | . . . . . . . Repair Stations 2 | . . . 2 . . . Recycling Units . | . . . . . . . Scanalyzers . | . . . . . . . Garrison Access . | . . . . . . . Terminal Hacks 20 | . 11 . 9 . . . Record 1 | . . . 1 . . . Robot Analysis 2 | . 2 . . . . . Prototype ID Bank 2 | . 1 . 1 . . . Branch Access Points 1 | . . . 1 . . . Terminal Index 1 | . 1 . . . . . Unreport Threat 1 | . 1 . . . . . Locate Traps 6 | . 2 . 4 . . . Dispatch Records 1 | . 1 . . . . . Hauler Manifests 2 | . 1 . 1 . . . Registered Components 2 | . 1 . 1 . . . Zone Layout 1 | . 1 . . . . . Fabricator Hacks . | . . . . . . . Repair Station Hacks 2 | . . . 2 . . . Scan Component 1 | . . . 1 . . . Repair 1 | . . . 1 . . . Recycling Unit Hacks . | . . . . . . . Scanalyzer . | . . . . . . . Garrison Access Hacks . | . . . . . . . Unauthorized Hacks 2 | . 2 . . . . . Terminals 2 | . 2 . . . . . Botnet 2 | . 2 . . . . . Fabricators . | . . . . . . . Repair Stations . | . . . . . . . Recycling Units . | . . . . . . . Scanalyzers . | . . . . . . . Garrison Access . | . . . . . . . Data Cores Recovered 1 | . . . 1 . . . Used . | . . . . . . . Hacking Detections 13 | . 5 . 8 . . . Full Trace Events 1 | . 1 . . . . . Feedback Events . | . . . . . . . Feedback Blocked . | . . . . . . . Robot Schematics Acquired . | . . . . . . . Robots Built . | . . . . . . . Authchips . | . . . . . . . Time . | . . . . . . . Total Robot Build Rating . | . . . . . . . Part Schematics Acquired . | . . . . . . . Parts Built . | . . . . . . . Authchips . | . . . . . . . Time . | . . . . . . . Total Part Build Rating . | . . . . . . . Parts Repaired 1 | . . . 1 . . . Time 26 | . . . 26 . . . Parts Recycled . | . . . . . . . Recycled Matter . | . . . . . . . Retrieved Matter . | . . . . . . . Retrieved Components . | . . . . . . . Parts Scanalyzed . | . . . . . . . Part Schematics Acquired . | . . . . . . . Parts Damaged . | . . . . . . . Bothacking | -11 -10 -10 -9 -9 -9 -8 ------------ Run | Yrd Mat Min Mat Min Exi Min Used RIF Installer . | . . . . . . . Robots Hacked . | . . . . . . . Non-combat . | . . . . . . . Combat . | . . . . . . . Robot Hacks Applied . | . . . . . . . Relay Couplers Released . | . . . . . . . Fabnet Peak Effective % . | . . . . . . . Robots Rewired . | . . . . . . . Allies Hacked . | . . . . . . . Hacks Repelled . | . . . . . . . Allies | -11 -10 -10 -9 -9 -9 -8 -------- Run | Yrd Mat Min Mat Min Exi Min Total Allies 1 | . . . . 1 . . Largest Group 1 | . . . . 1 . . Highest-Rated Group 31 | . . . . 31 . . Highest-Rated Ally 31 | . . . . 31 . . Total Orders . | . . . . . . . Ally Attacks . | . . . . . . . Total Damage . | . . . . . . . Kills . | . . . . . . . Allies Corrupted . | . . . . . . . Allies Melted . | . . . . . . . Intel | -11 -10 -10 -9 -9 -9 -8 ------- Run | Yrd Mat Min Mat Min Exi Min Robot Analysis Total 2 | . 2 . . . . . Derelict Logs Recovered 1 | . . . . 1 . . Drone Launches . | . . . . . . . Drone Recoveries . | . . . . . . . Exploration | -11 -10 -10 -9 -9 -9 -8 ------------- Run | Yrd Mat Min Mat Min Exi Min Turns Passed 6271 | 115 890 637 2108 614 1897 10 Spaces Moved 2379 | 47 436 205 746 255 689 1 Core . | . . . . . . . Treads 2379 | 47 436 205 746 255 689 1 Legs . | . . . . . . . Wheels . | . . . . . . . Hover . | . . . . . . . Flight . | . . . . . . . Fastest Speed 160 | 160 160 160 160 240 240 320 Average Speed 215 | 160 160 160 232 240 243 320 Slowest Speed 400 | 160 160 160 320 240 400 320 Overloaded Moves . | . . . . . . . Propulsion Burnouts . | . . . . . . . Robots Hopped . | . . . . . . . Cave-ins Triggered . | . . . . . . . Exploration Rate (%) 45 | 5 81 45 70 46 69 3 Regions Visited 6 Branch Regions 4 Pre-discovered Areas 1 | . . 1 . . . . Known Exits Taken 1 | . . . 1 . . . Unknown Exits Taken 5 | 1 1 1 . 1 1 . Scrap Searched 1 | . . . . 1 . . Spaces Dug . | . . . . . . . Terrain Destroyed 69 | . . . . . 48 21 Melee . | . . . . . . . Projectile . | . . . . . . . AOE 69 | . . . . . 48 21 Terrain Rammed . | . . . . . . . Walls Destroyed . | . . . . . . . Machines Disabled . | . . . . . . . Actions | -11 -10 -10 -9 -9 -9 -8 --------- Run | Yrd Mat Min Mat Min Exi Min Total 3082 | 66 519 486 945 257 805 4 Wait 347 | . 8 268 42 . 29 . Move 2373 | 46 435 204 745 254 688 1 Hop . | . . . . . . . Pick Up 38 | 2 10 . 18 1 7 . Fast Attach 13 | . 2 . 11 . . . Attach 17 | 2 . . 5 . 10 . Detach 7 | . . . 3 . 4 . Swap 16 | 1 4 . 9 . 2 . Drop 39 | 4 5 . 23 1 6 . Fire 225 | 11 55 14 83 . 59 3 Melee . | . . . . . . . Ram . | . . . . . . . Kick . | . . . . . . . Crush 7 | . . . 6 1 . . Escape Stasis . | . . . . . . . Rewire . | . . . . . . . Trap . | . . . . . . . Miscellaneous . | . . . . . . . Route ------- -11/Scrapyard -10/Materials (discovered 5 exits: *Mat x3 / [*Min] / [*Sub]) -10/Mines -9/Materials (discovered 5 exits: [*Mat x2] / *Min x2 / Sto) -9/Mines (discovered 2 exits: [*Mat] / [*Exi]) -9/Exiles (discovered 2 exits: [*Min x2]) -8/Mines History --------- Turn | Location | Event 19 | -11/Scrapyard | Discovered new exit (range 3) 116 | -11/Scrapyard | Entered Materials 166 | -10/Materials | Discovered new exit (range 6) 263 | -10/Materials | Discovered new exit (range 15) 309 | -10/Materials | Build established: Mutant 541 | -10/Materials | Discovered new exit (range 13) 736 | -10/Materials | Discovered new exit (range 8) 800 | -10/Materials | Derelicts attacked the area 920 | -10/Materials | Discovered new exit (range 9) 1006 | -10/Materials | Entered Mines 1007 | -10/Mines | Learned location of Storage (-9) 1055 | -10/Mines | Assembled infested the area 1060 | -10/Mines | Assisted by a Guerilla fighting off Assembled 1630 | -10/Mines | Discovered new exit (range 6) 1643 | -10/Mines | Entered Materials 1643 | -9/Materials | Evolved 2 slots: Utility x1, Weapon x1 1692 | -9/Materials | Discovered new exit (range 16) 1960 | -9/Materials | Build established: Tank 2128 | -9/Materials | Discovered new exit (range 16) 2167 | -9/Materials | Identified exit to Mines 2167 | -9/Materials | Identified exit to Storage 2326 | -9/Materials | Discovered new exit (range 15) 2363 | -9/Materials | Build established: Scavenger-Tank 3364 | -9/Materials | Discovered new exit (range 16) 3493 | -9/Materials | Repaired Assault Rifle 3751 | -9/Materials | Entered Mines 3852 | -9/Mines | Discovered new exit (range 9) 3910 | -9/Mines | Found a hidden stash of uninstalled traps 3956 | -9/Mines | Received a Mining Laser from a helpful Derelict 4277 | -9/Mines | Received a Rocket Launcher from a helpful Derelict 4322 | -9/Mines | A weapon hastily lodged in a ceiling crevice suddenly fell to the ground 4353 | -9/Mines | Deemed a non-threat by the Exiles lab entrance 4355 | -9/Mines | Discovered new exit (range 5) 4365 | -9/Mines | Entered Exiles 4444 | -9/Exiles | Met 8R-AWN 4480 | -9/Exiles | Met EX-HEX 4585 | -9/Exiles | Met EX-DEC 4976 | -9/Exiles | Attacked by the Exiles 5180 | -9/Exiles | Lost 6 parts (1p1n2u2w) 5193 | -9/Exiles | Core integrity fell below 50% 5208 | -9/Exiles | Destroyed 8R-AWN 5216 | -9/Exiles | Found Prototype Processor 5303 | -9/Exiles | Discovered new exit (range 14) 5729 | -9/Exiles | Build established: Mutant 6081 | -9/Exiles | Core integrity fell below 20% 6227 | -9/Exiles | Discovered new exit (range 14) 6262 | -9/Exiles | Entered Mines 6272 | -8/Mines | Destroyed by B-36 Bruiser with Hammer Last Messages --------------- 05241_ Dropped Prototype Leg. 05289_ The unstable cave ceiling collapses. 05303_ EXIT=FOUND 05422_ Lgt. Treads destroyed. 05426_ Hrd. Medium Armor Plating destroyed. 05432_ Acquired 4 matter. 05525_ Extracted 150 matter. 05922_ Imp. Assault Rifle destroyed. 06078_ Assault Rifle destroyed. 06203_ Rigged Nuclear Core explodes. 06203_ Lgt. Treads destroyed. 06203_ Machine disabled. 06217_ Rigged Fission Core explodes. 06227_ EXIT=FOUND LOCATION=UNKNOWN GOAL=ESCAPE 06266_ Plasma Injector explodes. 06266_ Rocket Launcher destroyed. 06266_ Destroyed Rocket Launcher. 06266_ G-47 Trooper destroyed. Map ----- +----------------------------------------------------+ | | | | | | | | | | | | | | | | | | | | | ?????????????????????????????????????????????????? | | ?????????????????????????????????????????????????? | | ?????????????????????????????????????????????????? | | ?????????????????????????????????????????????????? | | ?????????????????????????????????????????????????? | | ?????????????????????????????????????????????????? | | ?????????????????????????????????????????????????? | | ?????????????????????????????????????????????????? | | ???????????????????????######???#???#????????????? | | ??????????????????????##;;;;### #? #????????????? | | ?????????????????????## !%[ ;# # ?????????????? | | ?????????????????????#; *== ???????????????? | | ?????????????????????#; ?????????????????? | | ?????????????????????## ##?????????????????? | | ?????????????????????#; b g #?????????????????? | | ??????????????????????# @ #?????????????????? | | ??????????????????????# #?????????????????? | | ??????????????????????##;; ##?????????????????? | | ???????????????????????########??????????????????? | | ?????????????????????????????????????????????????? | | ?????????????????????????????????????????????????? | | ?????????????????????????????????????????????????? | | ?????????????????????????????????????????????????? | | ?????????????????????????????????????????????????? | | ?????????????????????????????????????????????????? | | ?????????????????????????????????????????????????? | | ?????????????????????????????????????????????????? | | ?????????????????????????????????????????????????? | | ?????????????????????????????????????????????????? | | ?????????????????????????????????????????????????? | | ?????????????????????????????????????????????????? | | ?????????????????????????????????????????????????? | | ?????????????????????????????????????????????????? | | ?????????????????????????????????????????????????? | | ?????????????????????????????????????????????????? | | ?????????????????????????????????????????????????? | | ?????????????????????????????????????????????????? | | ?????????????????????????????????????????????????? | | ?????????????????????????????????????????????????? | | ?????????????????????????????????????????????????? | +----------------------------------------------------+ Best States ------------- Heat Dissipation 28 Energy Generation 10 Energy Capacity 250 Matter Stores 300 Matter Capacity 300 Sight Range 16 Terrain Scan Density 10 Armor Coverage 450 Weapon Shielding 33 Evasion (%) 40 Recoil Reduction 2 Authchip Count 4 Item Schematics ----------------- None Robot Schematics ------------------ None Fabricated ------------ Nothing Alien Tech Used ----------------- None Achievements -------------- None Challenges ------------ None Game ------ Seed TractorAntimissileBuckler Manual? 0 Play Time 00:26:45 Cumulative 70.0 hours Start 2024.06.29 @ 11:46:21 End 2024.06.29 @ 12:13:50 Sessions 1 Manual Loads 0 Difficulty Rogue Special Mode None Game No. 123 Rogue 101 Adventurer 22 Explorer 0 Win Type - Total 1 Types 1/0/0/0/0/0/0/0/0 Lore% 44 Gallery% 58 Achievement% 49 Wizard Run 0 Options --------- Layout 0 ASCII 0 Keyboard 1 Movement Numpad Keybinds 0 Fullscreen 2 Font 18/SmallcapsGlow Map View 76x50 Zoom Use 0% Tactical HUD 1 Map Filters NONE Filters NONE Steam 1 RUN: 275b04e9-d3b8-4701-a685-dcbcc2220870